fUST/lending_fUST_20240110
["ID","MTS","AMOUNT","RATE_DAILY","PERIOD"]
[311035346,1704880246668,-500.0,0.00028219,2]
[311035348,1704880246678,-500.0,0.00028219,2]
[311035350,1704880246687,-4820.02662004,0.00028219,2]
[311035399,1704880255722,-273.94186221,0.00017877,2]
[311035400,1704880255872,-5.59065025,0.00017877,2]
[311035403,1704880276323,-21965.72091891,0.000295,30]
[311035404,1704880276359,-413.09487042,0.0003,30]
[311035410,1704880308133,13944.34285161,0.000295,30]
[311035411,1704880315262,-154.93802479,0.00017876,2]
[311035412,1704880315290,-149.16781367,0.00017877,2]
[311035414,1704880315388,-6.2062416,0.00017877,2]
[311035415,1704880317536,304.10583846,0.00017876,2]
[311035416,1704880318107,-200.80376072,0.00017876,2]
[311035417,1704880318223,-4.09803593,0.00017876,2]
[311035418,1704880318256,-196.70572479,0.00017876,2]
[311035419,1704880318411,-200.80376072,0.00017876,2]
[311035420,1704880318528,-475.06029395,0.00017876,2]
[311035421,1704880320013,384.07416513,0.00017876,2]
[311035422,1704880320043,331.97715565,0.00017876,2]
[311035424,1704880329316,200.0,0.00021996,7]
[311035556,1704880659570,170.0,0.0003,30]
[311035557,1704880702574,-1760.89700905,0.00017617,2]
[311035558,1704880702692,-35.93667365,0.00017617,2]
[311035559,1704880809787,-983.37034809,0.00017747,2]
[311035560,1704880809891,-20.06878261,0.00017747,2]
[311035561,1704880843390,-463.10376829,0.00017843,2]
[311035562,1704880843523,-9.45109731,0.00017843,2]
[311035564,1704880869003,-278.97112866,0.000176,2]
[311035565,1704880869120,-5.69328834,0.000176,2]
[311035571,1704880948101,-872.56977946,0.00018588,2]
[311035572,1704880948121,-947.43868379,0.00018588,2]
[311035573,1704880948141,-264.87381963,0.00018589,2]
[311035574,1704880948161,-230.48582873,0.00018589,2]
[311035575,1704880948182,-154.93802479,0.00018589,3]
[311035576,1704880948201,-8680.02734455,0.00018589,2]
[311035577,1704880980232,-248.48555907,0.00016733,2]
[311035578,1704880980341,-5.07113386,0.00016733,2]
[311035580,1704881006126,-291.23422105,0.00016733,2]
[311035581,1704881006237,-5.94355553,0.00016733,2]
[311035582,1704881012633,-392.0266963,0.00016732,2]
[311035583,1704881012914,-8.00054482,0.00016732,2]
[311035584,1704881014396,-164.91655517,0.00016733,2]
[311035585,1704881014429,-148.54093319,0.00016733,2]
[311035586,1704881014485,-6.3970916,0.00016733,2]
[311035587,1704881015644,307.06039676,0.00016733,2]
[311035588,1704881015671,53.67589644,0.00016733,2]
[311035589,1704881057965,-742.06549201,0.00016726,2]
[311035590,1704881058051,-15.14419371,0.00016726,2]
[311035591,1704881145110,-945.26047019,0.00016733,2]
[311035592,1704881145383,-19.29103,0.00016733,2]
[311035593,1704881154050,-154.93802479,0.00016734,3]
[311035594,1704881154080,-700.18035908,0.00017235,2]
[311035595,1704881154161,-172.38942038,0.00017235,2]
[311035596,1704881251984,-154.93802479,0.00016724,3]
[311035597,1704881252011,-668.16125414,0.00017557,2]
[311035598,1704881252044,-171.73596926,0.00017557,2]
[311035599,1704881265797,-927.17702559,0.00017722,2]
[311035600,1704881265923,-18.92198011,0.00017722,2]
[311035601,1704881267413,154.93802479,0.0001672,3]
[311035602,1704881296673,-154.93802479,0.00016726,3]
[311035603,1704881296701,-11845.06197521,0.00017566,2]
[311035604,1704881296798,-12000.0,0.00017566,2]
[311035605,1704881296980,-1054.93802479,0.00017566,2]
[311035606,1704881364104,-154.93802479,0.00016726,3]
[311035607,1704881364125,-1432.29474808,0.00018472,2]
[311035621,1704881432094,-154.93802479,0.00016625,3]
[311035623,1704881432105,-2029.97306616,0.0001847,2]
[311035625,1704881432115,-688.24109586,0.00018471,2]
[311036095,1704881438225,-13213.77779523,0.0001847,2]
[311036098,1704881438236,-23676.27262924,0.0001847,2]
[311036100,1704881438245,-898.99167701,0.00018471,2]
[311036102,1704881438253,-19828.39990193,0.00018471,2]
[311036104,1704881438262,-155.08091953,0.00018472,2]
[311036106,1704881438271,-13614.18516202,0.00018475,2]
[311036108,1704881438280,-500.33541669,0.00018582,2]
[311036110,1704881438290,-1023.34361286,0.00018583,2]
[311036112,1704881438299,-161.42876466,0.00018584,2]
[311036114,1704881438309,-254.26124617,0.00018586,2]
[311036116,1704881438318,-398.6445617,0.00018586,2]
[311036118,1704881438327,-163.48526765,0.00018586,2]
[311036120,1704881438335,-180.58396718,0.00018586,2]
[311036122,1704881438345,-174.42616,0.00018586,2]
[311036123,1704881438354,-352.91612373,0.00018587,2]
[311036126,1704881438363,-6655.06756564,0.00018587,2]
[311036127,1704881438372,-2070.35788054,0.00018593,2]
[311036129,1704881438381,-231.127847,0.00018609,2]
[311036131,1704881438390,-891.44480215,0.00018609,2]
[311036133,1704881438399,-400.07879328,0.00018609,2]
[311036135,1704881438409,-2100.45151675,0.0001861,2]
[311036138,1704881438419,-246.05359663,0.00018989,2]
[311036139,1704881438429,-177.3289011,0.00019178,2]
[311036141,1704881438438,-177.328897,0.00019178,2]
[311036143,1704881438446,-810.54636602,0.000195,2]
[311036144,1704881438455,-3476.43711676,0.00019591,2]
[311036145,1704881438464,-389.50532956,0.00019997,2]
[311036146,1704881438473,-1195.09669838,0.0002,2]
[311036147,1704881438482,-236.79527182,0.0002,2]
[311036149,1704881438491,-266.19065175,0.0002,2]
[311036151,1704881438500,-154.93802479,0.0002,2]
[311036153,1704881438508,-2994.25505405,0.0002,2]
[311036155,1704881438517,-151.51510611,0.0002,2]
[311036157,1704881438526,-14321.05377755,0.00021,2]
[311036159,1704881438535,-4067.13640944,0.00021,2]
[311036161,1704881438544,-1545.49856196,0.00021,2]
[311036163,1704881438554,-193.95210286,0.00021,2]
[311036165,1704881438563,-326.73090334,0.00021,2]
[311036167,1704881438572,-166.666666,0.00021918,2]
[311036168,1704881438581,-2079.63666476,0.00021996,2]
[311036170,1704881438590,-292.83058016,0.00022,4]
[311036172,1704881438600,-3931.75997852,0.00022,2]
[311036174,1704881438609,-156.86767994,0.00022,2]
[311036176,1704881438619,-348.08339068,0.00022,2]
[311036178,1704881438627,-4917.8600325,0.00022,2]
[311036180,1704881438636,-166.666666,0.00022431,2]
[311036182,1704881438645,-166.666666,0.00022944,2]
[311036184,1704881438655,-2093.08732709,0.00023,2]
[311036186,1704881438664,-166.666666,0.00023456,2]
[311036188,1704881438673,-166.666666,0.00023969,2]
[311036190,1704881438682,-3290.98332236,0.00023998,2]
[311036191,1704881438691,-2293.16748545,0.00024,2]
[311036193,1704881438701,-973.03500616,0.00024463,2]
[311036195,1704881438709,-166.666666,0.00024482,2]
[311036197,1704881438718,-4711.08145103,0.00025,2]
[311036199,1704881438727,-614.01289661,0.00025,2]
[311036201,1704881438736,-150.0,0.00025985,2]
[311036203,1704881438745,-525.91402641,0.00026,2]
[311036205,1704881438754,-2126.09470477,0.00026,2]
[311036207,1704881438763,-1247.26950387,0.00026119,2]
[311036209,1704881438772,-284.664417,0.00026401,2]
[311036211,1704881438781,-733.25771754,0.00027,2]
[311036213,1704881438791,-1500.0,0.00027,2]
[311036215,1704881438799,-238.97328304,0.0002708,2]
[311036217,1704881438809,-154760.70959135,0.00027083,2]
[311036218,1704881438818,-508.41512045,0.0002718,2]
[311036220,1704881438827,-180.68599404,0.0002718,2]
[311036222,1704881438836,-162.6816687,0.00027181,2]
[311036224,1704881438845,-245.72874804,0.00027181,2]
[311036226,1704881438854,-3735.0637491,0.00027181,2]
[311036228,1704881438863,-560.22977717,0.00027181,2]
[311036230,1704881438873,-50000.0,0.00027183,2]
[311036232,1704881438882,-54994.94556487,0.00027183,2]
[311036234,1704881438891,-5000.0,0.00027183,2]
[311036236,1704881438901,-5000.0,0.00027183,2]
[311036238,1704881438911,-1320.05839086,0.00027183,2]
[311036240,1704881438921,-3210.38639646,0.00027183,2]
[311036242,1704881438930,-5000.0,0.00027183,2]
[311036244,1704881438939,-8394.41753233,0.00027183,2]
[311036246,1704881438949,-238.973283,0.00027203,2]
[311036248,1704881438958,-32113.65059237,0.00027297,2]
[311036250,1704881438967,-238.973283,0.00027326,2]
[311036251,1704881438976,-156.27907449,0.00027394,2]
[311036253,1704881438985,-294.29289612,0.00027394,2]
[311036255,1704881438994,-521.52789577,0.00027394,2]
[311036257,1704881439004,-155.10911915,0.00027394,2]
[311036259,1704881439013,-155.62270884,0.00027394,2]
[311036261,1704881439023,-3612.07378676,0.00027394,2]
[311036263,1704881439036,-4629.40276157,0.00027394,2]
[311036265,1704881439046,-590.11543549,0.00027394,2]
[311036267,1704881439055,-3000.0,0.00027394,2]
[311036269,1704881439064,-9084.56277475,0.00027394,2]
[311036285,1704881439223,-929.5596101,0.00027394,2]
[311036287,1704881439232,-155.1084241,0.00027394,2]
[311036289,1704881439241,-555.30533459,0.00027395,2]
[311036291,1704881439250,-180.28265137,0.00027395,2]
[311036293,1704881439260,-214.97684073,0.00027395,2]
[311036295,1704881439270,-54201.56100322,0.00027395,2]
[311036297,1704881439279,-3687.23522318,0.00027396,2]
[311036299,1704881439289,-164.73645358,0.00027396,2]
[311036300,1704881439298,-185.20166311,0.00027396,2]
[311036302,1704881439307,-1711.85701986,0.00027396,2]
[311036304,1704881439317,-289.43551104,0.00027396,2]
[311036306,1704881439327,-155.55366155,0.00027396,2]
[311036321,1704881439459,-155.71004798,0.00027396,2]
[311036323,1704881439469,-155.30088633,0.00027396,2]
[311036325,1704881439478,-155.12313287,0.00027396,2]
[311036326,1704881439487,-261.64390678,0.00027396,2]
[311036328,1704881439496,-643.32630078,0.00027396,2]
[311036330,1704881439505,-6272.70721473,0.00027396,2]
[311036332,1704881439514,-190.48061924,0.00027396,2]
[311036334,1704881439523,-191.38797694,0.00027396,2]
[311036337,1704881439532,-155.17839186,0.00027396,2]
[311036339,1704881439541,-1354.76161098,0.00027396,2]
[311036340,1704881439550,-902.57007428,0.00027396,2]
[311036342,1704881439559,-155.39178535,0.00027396,2]
[311036344,1704881439568,-155.01068281,0.00027396,2]
[311036346,1704881439577,-363.52121373,0.00027396,2]
[311036348,1704881439586,-272.90618919,0.00027396,2]
[311036350,1704881439595,-155.06275693,0.00027396,2]
[311036352,1704881439604,-366.07525278,0.00027396,2]
[311036353,1704881439613,-501.02043593,0.00027397,2]
[311036355,1704881439622,-500.0,0.00027397,2]
[311036357,1704881439631,-500.0,0.00027397,2]
[311036359,1704881439640,-500.0,0.00027397,2]
[311036361,1704881439649,-500.0,0.00027397,2]
[311036363,1704881439658,-571.3599163,0.00027397,2]
[311036364,1704881439667,-500.0,0.00027397,2]
[311036365,1704881439676,-500.0,0.00027397,2]
[311036366,1704881439687,-501.83111774,0.00027397,2]
[311036367,1704881439696,-603.66307077,0.00027397,2]
[311036368,1704881439705,-506.65770087,0.00027397,2]
[311036369,1704881439713,-500.0,0.00027397,2]
[311036370,1704881439722,-562.16150847,0.00027397,2]
[311036371,1704881439731,-500.0,0.00027397,2]
[311036372,1704881439741,-524.12489659,0.00027397,2]
[311036373,1704881439750,-493.76665639,0.00027397,2]
[311036374,1704881439759,-500.0,0.00027397,2]
[311036375,1704881439768,-503.43008667,0.00027397,2]
[311036376,1704881439777,-500.0,0.00027397,2]
[311036377,1704881439786,-500.0,0.00027397,2]
[311036378,1704881439795,-502.36378172,0.00027397,2]
[311036379,1704881439804,-503.05323719,0.00027397,2]
[311036380,1704881439814,-454.51255567,0.00027397,2]
[311036381,1704881439823,-502.84193222,0.00027397,2]
[311036382,1704881439832,-503.17133488,0.00027397,2]
[311036383,1704881439841,-504.30430713,0.00027397,2]
[311036384,1704881439850,-500.0,0.00027397,2]
[311036386,1704881439860,-503.73609041,0.00027397,2]
[311036388,1704881439869,-500.0,0.00027397,2]
[311036389,1704881439879,-189.40971969,0.00027397,2]
[311036390,1704881439888,-502.72071019,0.00027397,2]
[311036391,1704881439898,-500.0,0.00027397,2]
[311036392,1704881439907,-500.0,0.00027397,2]
[311036393,1704881439917,-500.0,0.00027397,2]
[311036394,1704881439926,-500.0,0.00027397,2]
[311036395,1704881439937,-501.9526429,0.00027397,2]
[311036396,1704881439946,-197.2146599,0.00027397,2]
[311036398,1704881439956,-211.07566614,0.00027397,2]
[311036400,1704881439965,-500.0,0.00027397,2]
[311036402,1704881439975,-503.3951306,0.00027397,2]
[311036404,1704881439984,-500.0,0.00027397,2]
[311036406,1704881439994,-500.0,0.00027397,2]
[311036408,1704881440003,-500.9561627,0.00027397,2]
[311036410,1704881440013,-501.05321242,0.00027397,2]
[311036412,1704881440022,-500.0,0.00027397,2]
[311036414,1704881440034,-1000.0,0.00027397,4]
[311036416,1704881440044,-501.60366891,0.00027397,2]
[311036418,1704881440053,-383.16327084,0.00027397,2]
[311036420,1704881440062,-500.0,0.00027397,2]
[311036422,1704881440072,-513.26199714,0.00027397,2]
[311036424,1704881440081,-501.25921112,0.00027397,2]
[311036426,1704881440090,-500.0,0.00027397,2]
[311036428,1704881440100,-500.0,0.00027397,2]
[311036430,1704881440109,-500.62912109,0.00027397,2]
[311036432,1704881440119,-503.57074347,0.00027397,2]
[311036434,1704881440129,-500.62188728,0.00027397,2]
[311036436,1704881440139,-634.62797387,0.00027397,2]
[311036438,1704881440149,-602.33008702,0.00027397,2]
[311036440,1704881440158,-500.0,0.00027397,2]
[311036442,1704881440168,-519.38443112,0.00027397,2]
[311036444,1704881440178,-500.2761618,0.00027397,2]
[311036447,1704881440188,-502.30868847,0.00027397,2]
[311036449,1704881440198,-712.55,0.00027397,2]
[311036451,1704881440207,-502.40935148,0.00027397,2]
[311036453,1704881440216,-500.0,0.00027397,2]
[311036455,1704881440225,-500.0,0.00027397,2]
[311036457,1704881440235,-275.97361976,0.00027397,2]
[311036459,1704881440244,-500.0,0.00027397,2]
[311036461,1704881440253,-501.5659788,0.00027397,2]
[311036463,1704881440263,-500.0,0.00027397,2]
[311036465,1704881440272,-500.0,0.00027397,2]
[311036467,1704881440282,-500.0,0.00027397,2]
[311036469,1704881440291,-500.0,0.00027397,2]
[311036471,1704881440301,-500.0,0.00027397,2]
[311036472,1704881440309,-500.0,0.00027397,2]
[311036473,1704881440318,-534.12593271,0.00027397,2]
[311036474,1704881440328,-500.0,0.00027397,2]
[311036475,1704881440337,-500.0,0.00027397,2]
[311036476,1704881440347,-500.0,0.00027397,2]
[311036477,1704881440357,-501.19540855,0.00027397,2]
[311036478,1704881440366,-1235.45,0.00027397,2]
[311036479,1704881440375,-500.0,0.00027397,2]
[311036480,1704881440385,-500.0,0.00027397,2]
[311036481,1704881440394,-614.09,0.00027397,2]
[311036482,1704881440404,-500.0,0.00027397,2]
[311036483,1704881440413,-501.51719285,0.00027397,2]
[311036484,1704881440422,-501.75915698,0.00027397,2]
[311036485,1704881440431,-500.0,0.00027397,2]
[311036486,1704881440441,-500.0,0.00027397,2]
[311036487,1704881440450,-500.0,0.00027397,2]
[311036488,1704881440459,-507.50639236,0.00027397,2]
[311036489,1704881440468,-500.0,0.00027397,2]
[311036490,1704881440477,-500.0,0.00027397,2]
[311036491,1704881440487,-501.51100543,0.00027397,2]
[311036492,1704881440496,-20035.59365478,0.00027397,10]
[311036493,1704881440505,-500.0,0.00027397,2]
[311036494,1704881440514,-208.73851058,0.00027397,2]
[311036495,1704881440524,-500.0,0.00027397,2]
[311036496,1704881440533,-500.0,0.00027397,2]
[311036497,1704881440543,-500.0,0.00027397,2]
[311036498,1704881440553,-500.0,0.00027397,2]
[311036499,1704881440562,-500.0,0.00027397,2]
[311036500,1704881440571,-502.64056547,0.00027397,2]
[311036501,1704881440580,-500.0,0.00027397,2]
[311036502,1704881440589,-500.0,0.00027397,2]
[311036503,1704881440598,-500.0,0.00027397,2]
[311036504,1704881440607,-501.31877181,0.00027397,2]
[311036505,1704881440616,-500.0,0.00027397,2]
[311036506,1704881440625,-500.0,0.00027397,2]
[311036507,1704881440635,-277.96292167,0.00027397,2]
[311036508,1704881440656,-222.03707833,0.00027397,2]
[311036509,1704881440666,-502.2715108,0.00027397,2]
[311036510,1704881440675,-515.12042207,0.00027397,2]
[311036511,1704881440686,-525.58859104,0.00027397,2]
[311036512,1704881440695,-1456.38,0.00027397,2]
[311036513,1704881440704,-500.0,0.00027397,2]
[311036514,1704881440713,-500.0,0.00027397,2]
[311036515,1704881440722,-500.0,0.00027397,2]
[311036516,1704881440731,-500.0,0.00027397,2]
[311036517,1704881440740,-529.56604908,0.00027397,2]
[311036518,1704881440750,-500.0,0.00027397,2]
[311036519,1704881440760,-515.78038111,0.00027397,2]
[311036520,1704881440770,-500.0,0.00027397,2]
[311036521,1704881440778,-500.0,0.00027397,2]
[311036522,1704881440788,-502.50749345,0.00027397,2]
[311036523,1704881440797,-500.0,0.00027397,2]
[311036524,1704881440806,-500.0,0.00027397,2]
[311036525,1704881440816,-500.0,0.00027397,2]
[311036526,1704881440825,-501.57878197,0.00027397,2]
[311036527,1704881440834,-500.0,0.00027397,2]
[311036528,1704881440843,-504.1082049,0.00027397,2]
[311036529,1704881440853,-500.0,0.00027397,2]
[311036530,1704881440862,-502.88294829,0.00027397,2]
[311036531,1704881440872,-500.0,0.00027397,2]
[311036532,1704881440881,-1480.38,0.00027397,2]
[311036533,1704881440891,-500.0,0.00027397,2]
[311036534,1704881440901,-1309.18,0.00027397,2]
[311036535,1704881440910,-220.31383132,0.00027397,2]
[311036536,1704881440920,-502.37025823,0.00027397,2]
[311036537,1704881440930,-500.0,0.00027397,2]
[311036538,1704881440939,-500.0,0.00027397,2]
[311036539,1704881440949,-500.0,0.00027397,2]
[311036540,1704881440958,-500.0,0.00027397,2]
[311036541,1704881440967,-611.61325967,0.00027397,2]
[311036542,1704881440977,-500.0,0.00027397,2]
[311036543,1704881440986,-500.0,0.00027397,2]
[311036544,1704881440996,-501.59202637,0.00027397,2]
[311036545,1704881441006,-515.06000901,0.00027397,2]
[311036546,1704881441015,-500.0,0.00027397,2]
[311036547,1704881441025,-506.5382968,0.00027397,2]
[311036548,1704881441035,-500.0,0.00027397,2]
[311036549,1704881441045,-500.0,0.00027397,2]
[311036550,1704881441055,-1848.3,0.00027397,2]
[311036551,1704881441064,-891.05385325,0.00027397,2]
[311036552,1704881441380,-291.40614675,0.00027397,2]
[311036553,1704881441389,-112.60564463,0.00027397,2]
[311036554,1704881441401,-1069.85435537,0.00027397,2]
[311036555,1704881441410,-1182.46,0.00027397,2]
[311036556,1704881441420,-1182.46,0.00027397,2]
[311036557,1704881441430,-1182.46,0.00027397,2]
[311036558,1704881441439,-1182.46,0.00027397,2]
[311036559,1704881441448,-1182.46,0.00027397,2]
[311036560,1704881441457,-1182.46,0.00027397,2]
[311036561,1704881441466,-500.0,0.00027397,2]
[311036562,1704881441475,-1182.46,0.00027397,2]
[311036563,1704881441484,-391.53399081,0.00027397,2]
[311036564,1704881441497,-790.92600919,0.00027397,2]
[311036565,1704881441506,-1182.46,0.00027397,2]
[311036566,1704881441515,-196.89572774,0.00027397,2]
[311036567,1704881441527,-303.10427226,0.00027397,2]
[311036568,1704881441536,-1182.46,0.00027397,2]
[311036569,1704881441545,-500.0,0.00027397,2]
[311036570,1704881441555,-500.0,0.00027397,2]
[311036571,1704881441564,-309.92921421,0.00027397,2]
[311036572,1704881441573,-142.51452303,0.00027397,2]
[311036573,1704881441584,-54.55070883,0.00027397,2]
[311036574,1704881441593,-503.85827066,0.00027397,2]
[311036575,1704881441602,-500.0,0.00027397,2]
[311036576,1704881441611,-500.70399391,0.00027397,2]
[311036577,1704881441621,-500.0,0.00027397,2]
[311036578,1704881441630,-315.9780889,0.00027397,5]
[311036579,1704881441673,-571.01278115,0.00027397,5]
[311036773,1704881443202,-157.53086971,0.0001847,2]
[311036776,1704881443212,-5500.05243674,0.00027387,3]
[311036785,1704881443261,-3275.36756326,0.00027387,3]
[311036787,1704881443271,-113.00912995,0.00027397,5]
[311036789,1704881443280,-502.69223075,0.00027397,2]
[311036791,1704881443290,-500.0,0.00027397,2]
[311036793,1704881443300,-500.0,0.00027397,2]
[311036795,1704881443309,-116.04442642,0.00027397,2]
[311036941,1704881448387,-604.2952575,0.00027386,2]
[311036942,1704881448396,-290.40148856,0.00027395,2]
[311036944,1704881448406,-212.96062918,0.00027395,2]
[311036947,1704881448416,-383.95557358,0.00027397,2]
[311036949,1704881448425,-500.68671623,0.00027397,2]
[311036950,1704881448434,-500.0,0.00027397,2]
[311036955,1704881448548,-500.0,0.00027397,2]
[311036957,1704881448557,-500.0,0.00027397,2]
[311036959,1704881448566,-221.12378611,0.00027397,2]
[311036961,1704881448575,-500.0,0.00027397,2]
[311036963,1704881448585,-509.91820249,0.00027397,2]
[311036965,1704881448595,-501.93651497,0.00027397,2]
[311036967,1704881448604,-536.3838065,0.00027397,2]
[311036969,1704881448614,-500.0,0.00027397,2]
[311036971,1704881448623,-446.68067741,0.00027397,2]
[311036973,1704881448633,-177.73517949,0.00027397,2]
[311036975,1704881448642,-501.30025662,0.00027397,2]
[311036977,1704881448651,-500.0,0.00027397,2]
[311036979,1704881448660,-500.0,0.00027397,2]
[311036981,1704881448669,-500.0,0.00027397,2]
[311036983,1704881448678,-2168.483897,0.00027397,2]
[311036986,1704881448695,-472.55486556,0.00027397,2]
[311037342,1704882638629,-154.93802479,0.00020444,4]
[311037344,1704882638639,-521.86347357,0.00020444,2]
[311037346,1704882638649,-266.19065175,0.00020445,2]
[311037348,1704882638658,-1195.09669838,0.00020446,2]
[311037350,1704882638667,-560.45578552,0.00020446,2]
[311037352,1704882638676,-167.43608784,0.00020454,2]
[311037354,1704882638685,-661.0499009,0.00020559,2]
[311037356,1704882638695,-326.73090334,0.00021,2]
[311037358,1704882638704,-19828.39990193,0.00021025,2]
[311037360,1704882638714,-24900.0,0.00021026,2]
[311037362,1704882638723,-250.0,0.0002103,2]
[311037364,1704882638732,-166.666666,0.00021918,2]
[311037366,1704882638741,-166.666666,0.00022431,2]
[311037368,1704882638751,-156.86767994,0.00022447,2]
[311037369,1704882638760,-348.08339068,0.00022447,2]
[311037371,1704882638769,-166.666666,0.00022944,2]
[311037372,1704882638779,-3931.75997852,0.00022998,2]
[311037373,1704882638788,-4917.8600325,0.00022999,2]
[311037374,1704882638798,-166.666666,0.00023456,2]
[311037375,1704882638807,-8469.49,0.00023733,3]
[311037376,1704882638816,-2093.08732709,0.00023742,2]
[311037378,1704882638825,-10163.39,0.00023743,3]
[311037379,1704882638833,-12196.06,0.00023753,3]
[311037380,1704882638843,-10014.12238485,0.00023763,2]
[311037381,1704882638852,-166.666666,0.00023969,2]
[311037383,1704882638860,-166.666666,0.00024482,2]
[311037384,1704882638870,-2100.45151675,0.00025294,2]
[311037385,1704882638880,-4711.08145103,0.00025296,2]
[311037386,1704882638888,-614.01289661,0.00025296,2]
[311037387,1704882638897,-831.51300258,0.00025297,2]
[311037388,1704882638907,-525.91402641,0.00026,2]
[311037389,1704882638916,-339.85854143,0.00026025,5]
[311037390,1704882638926,-620.0004441,0.0002673,2]
[311037391,1704882638936,-150.0,0.0002695,2]
[311037392,1704882638945,-1500.0,0.00027,2]
[311037393,1704882638955,-733.25771754,0.00027182,2]
[311037394,1704882638966,-4831.11509607,0.00027183,2]
[311037395,1704882638977,-5000.0,0.00027183,2]
[311037396,1704882638986,-25185.60676872,0.00027183,2]
[311037479,1704883630051,200.0,0.00023314,7]
[311037480,1704883630830,280.0,0.00025646,7]
[311037500,1704883833567,-261.7761853,0.00019074,2]
[311037501,1704883833577,-973.03500616,0.00019075,2]
[311037502,1704883833586,-1022.29431008,0.000195,2]
[311037503,1704883833595,-284.6644182,0.00020102,2]
[311037504,1704883833604,-246.05359663,0.00020963,2]
[311037505,1704883833614,-2182.52660228,0.00020963,2]
[311037506,1704883833623,-19828.39990193,0.00020963,2]
[311037507,1704883833632,-521.86347357,0.00020964,2]
[311037508,1704883833642,-154.92253873,0.00020964,4]
[311037509,1704883833651,-260.92582316,0.00020965,2]
[311037510,1704883833661,-162.75529733,0.00020965,2]
[311037511,1704883833670,-177.328897,0.00020977,2]
[311037512,1704883833680,-9867.32,0.00020989,3]
[311037513,1704883833690,-24270.25143968,0.00020998,2]
[311037603,1704883838653,-1250.66144998,0.00019073,2]
[311037604,1704883838663,-12619.79898479,0.00020998,2]
[311037605,1704883838672,-7943.71182072,0.00020999,2]
[311037606,1704883838682,-326.73090334,0.00021185,2]
[311037607,1704883838691,-8764.85,0.00021186,3]
[311037608,1704883838701,-11840.78,0.00021186,3]
[311037609,1704883838711,-322.26268464,0.00021194,2]
[311037611,1704883838721,-200.0,0.00021194,2]
[311037613,1704883838731,-793.5023498,0.00021194,2]
[311037614,1704883838743,-168.0053694,0.00021194,2]
[311037615,1704883838753,-4784.50329475,0.00021194,2]
[311037616,1704883838764,-158.32519524,0.00021194,2]
[311037617,1704883838775,-154.92253873,0.00021194,2]
[311037618,1704883838786,-901.30981836,0.00021194,2]
[311037619,1704883838796,-2100.45151675,0.00021194,2]
[311037620,1704883838806,-230.38355805,0.00021194,2]
[311037621,1704883838816,-199.72629673,0.00021195,2]
[311037622,1704883838826,-168.53910427,0.00021195,2]
[311037623,1704883838835,-3008.39923082,0.00021195,2]
[311037624,1704883838845,-242.53908956,0.00021195,2]
[311037625,1704883838854,-9224.45888187,0.00021195,2]
[311037626,1704883838863,-24900.0,0.00021197,2]
[311037627,1704883838874,-166.666666,0.00021918,2]
[311037628,1704883838885,-348.08339068,0.00022,2]
[311037629,1704883838896,-3931.75997852,0.00022,2]
[311037630,1704883838906,-156.86767994,0.00022,2]
[311037631,1704883838917,-4917.8600325,0.00022,2]
[311037632,1704883838927,-166.666666,0.00022431,2]
[311037633,1704883838937,-166.666666,0.00022944,2]
[311037634,1704883838948,-2093.08732709,0.00023,2]
[311037635,1704883838958,-166.666666,0.00023456,2]
[311037636,1704883838968,-175.766646,0.00023499,2]
[311037637,1704883838978,-7864.99306188,0.00023865,2]
[311037638,1704883838989,-166.666666,0.00023969,2]
[311037639,1704883838999,-154.92253873,0.00024,2]
[311037640,1704883839010,-2293.16748545,0.00024,2]
[311037641,1704883839020,-166.666666,0.00024482,2]
[311037642,1704883839030,-497.00944952,0.0002498,5]
[311037643,1704883839040,-614.01289661,0.00025,2]
[311037644,1704883839051,-677.45880314,0.00025,2]
[311037645,1704883839061,-4711.08145103,0.00025,2]
[311037646,1704883839071,-3000.0,0.00025,2]
[311037647,1704883839081,-4554.88458784,0.00025082,2]
[311037648,1704883839091,-554.34200172,0.00025083,2]